fUSD/lending_fUSD_20240210
["ID","MTS","AMOUNT","RATE_DAILY","PERIOD"]
[313651413,1707541823123,876.60554203,0.0002093,2]
[313651423,1707541831932,-345.09482999,0.00022999,2]
[313651425,1707541831942,-534.95931882,0.00023,2]
[313651427,1707541831951,-241.32020404,0.00023,2]
[313651428,1707541831960,-500.0,0.00023,2]
[313651430,1707541831969,-888.30504813,0.00023,2]
[313651433,1707541831979,-869.67746725,0.00023,2]
[313651435,1707541831988,-810.19074066,0.00023,2]
[313651436,1707541831998,-655.82626441,0.00023084,2]
[313651438,1707541832007,-721.61367477,0.00023099,2]
[313651439,1707541832017,-157.9414969,0.000231,2]
[313651440,1707541832026,-2605.59929779,0.000231,2]
[313651441,1707541832035,-156.17264738,0.00023101,2]
[313651442,1707541832044,-263.54815705,0.00023101,2]
[313651443,1707541832054,-192.84311113,0.00023101,2]
[313651444,1707541832064,-250.0,0.00023102,2]
[313651445,1707541832074,-152.56464471,0.00023162,2]
[313651446,1707541832083,-283.61,0.00023272,2]
[313651447,1707541832093,-239.33,0.00023276,2]
[313651448,1707541832102,-7173.14390489,0.000233,2]
[313651449,1707541832113,-165.44,0.00023348,2]
[313651450,1707541832122,-152.56464471,0.00023427,2]
[313651451,1707541832131,-250.0,0.00023457,2]
[313651452,1707541832140,-152.56464471,0.00023691,2]
[313651453,1707541832153,-165.44,0.00023746,2]
[313651454,1707541832163,-152.56464471,0.00023956,2]
[313651455,1707541832172,-19412.70663679,0.0002399,2]
[313651456,1707541832181,-268.77724174,0.00024,2]
[313651457,1707541832190,-157.012,0.00024048,2]
[313651458,1707541832199,-157.012,0.00024098,2]
[313651459,1707541832209,-165.44,0.00024145,2]
[313651460,1707541832218,-152.56464471,0.00024221,2]
[313651461,1707541832227,-292.37,0.00024225,2]
[313651462,1707541832236,-22721.6588187,0.00024309,2]
[313651463,1707541832245,-152.56464471,0.00024486,2]
[313651464,1707541832254,-155.73267729,0.00024555,2]
[313651465,1707541832264,-258.34917794,0.00024555,2]
[313651466,1707541832273,-155.72340592,0.00024555,2]
[313651467,1707541832282,-214.07036543,0.00024555,2]
[313651468,1707541832292,-155.12095776,0.00024555,2]
[313651469,1707541832301,-397.93342097,0.00024555,2]
[313651470,1707541832310,-211.57479008,0.00024555,2]
[313651471,1707541832319,-3344.04883345,0.00024555,2]
[313651472,1707541832329,-529.73227205,0.00024555,2]
[313651473,1707541832338,-1229.97639926,0.00024555,2]
[313651474,1707541832347,-434.91511073,0.00024555,2]
[313651475,1707541832356,-1389.02713335,0.00024555,2]
[313651476,1707541832365,-673.53913339,0.00024555,2]
[313651477,1707541832375,-614.38226532,0.00024555,2]
[313651478,1707541832384,-10630.77776906,0.00024555,2]
[313651479,1707541832393,-248.90405407,0.00024556,2]
[313651480,1707541832403,-4289.5561115,0.00024556,2]
[313651481,1707541832413,-215.82244978,0.00024556,2]
[313651482,1707541832422,-302.76575781,0.00024556,2]
[313651483,1707541832432,-476.48497332,0.00024556,2]
[313651484,1707541832441,-47777.11312501,0.00024556,2]
[313651485,1707541832451,-55555.0,0.00024557,2]
[313651486,1707541832460,-800.0,0.0002463,2]
[313651487,1707541832470,-708782.35633283,0.00024656,2]
[313651488,1707541832479,-500.0,0.00024657,2]
[313651489,1707541832489,-500.0,0.00024657,2]
[313651490,1707541832499,-530.87225477,0.00024657,2]
[313651491,1707541832508,-500.0,0.00024657,2]
[313651492,1707541832518,-500.0,0.00024657,2]
[313651493,1707541832527,-500.0,0.00024657,2]
[313651494,1707541832537,-803.57,0.00024657,2]
[313651495,1707541832546,-500.0,0.00024657,2]
[313651496,1707541832556,-500.0,0.00024657,2]
[313651497,1707541832566,-500.0,0.00024657,2]
[313651498,1707541832575,-500.0,0.00024657,2]
[313651499,1707541832585,-500.0,0.00024657,2]
[313651500,1707541832595,-500.0,0.00024657,2]
[313651501,1707541832604,-500.0,0.00024657,2]
[313651502,1707541832614,-500.0,0.00024657,2]
[313651503,1707541832624,-500.0,0.00024657,2]
[313651504,1707541832633,-500.0,0.00024657,2]
[313651505,1707541832642,-701.35,0.00024657,2]
[313651506,1707541832653,-500.0,0.00024657,2]
[313651507,1707541832665,-500.0,0.00024657,2]
[313651508,1707541832919,-500.0,0.00024657,2]
[313651509,1707541832929,-500.0,0.00024657,2]
[313651510,1707541832939,-625.62457507,0.00024657,2]
[313651511,1707541832948,-500.0,0.00024657,2]
[313651512,1707541832958,-500.0,0.00024657,2]
[313651513,1707541832967,-500.0,0.00024657,2]
[313651514,1707541832977,-500.0,0.00024657,2]
[313651515,1707541832986,-500.0,0.00024657,2]
[313651516,1707541832995,-500.0,0.00024657,2]
[313651517,1707541833005,-500.0,0.00024657,2]
[313651518,1707541833014,-500.0,0.00024657,2]
[313651519,1707541833023,-500.0,0.00024657,2]
[313651520,1707541833032,-500.0,0.00024657,2]
[313651521,1707541833042,-500.0,0.00024657,2]
[313651522,1707541833051,-630.89872121,0.00024657,2]
[313651523,1707541833060,-500.0,0.00024657,2]
[313651524,1707541833069,-500.0,0.00024657,2]
[313651525,1707541833079,-235.60760798,0.00024657,2]
[313651526,1707541833088,-500.0,0.00024657,2]
[313651527,1707541833097,-500.0,0.00024657,2]
[313651528,1707541833108,-500.0,0.00024657,2]
[313651529,1707541833118,-500.0,0.00024657,2]
[313651530,1707541833127,-500.0,0.00024657,2]
[313651531,1707541833136,-500.0,0.00024657,2]
[313651532,1707541833145,-393.72,0.00024657,2]
[313651533,1707541833155,-500.0,0.00024657,2]
[313651534,1707541833164,-500.0,0.00024657,2]
[313651535,1707541833173,-198.98192633,0.00024657,2]
[313651536,1707541833182,-500.0,0.00024657,2]
[313651537,1707541833192,-500.0,0.00024657,2]
[313651538,1707541833201,-500.0,0.00024657,2]
[313651539,1707541833210,-500.0,0.00024657,2]
[313651540,1707541833220,-752.41,0.00024657,7]
[313651541,1707541833229,-500.0,0.00024657,2]
[313651542,1707541833238,-500.0,0.00024657,2]
[313651543,1707541833246,-507.90036444,0.00024657,2]
[313651544,1707541833255,-532.89,0.00024657,2]
[313651545,1707541833264,-500.0,0.00024657,2]
[313651546,1707541833273,-500.0,0.00024657,2]
[313651547,1707541833283,-500.0,0.00024657,2]
[313651548,1707541833292,-500.0,0.00024657,2]
[313651549,1707541833301,-500.0,0.00024657,2]
[313651550,1707541833311,-500.00277693,0.00024657,2]
[313651551,1707541833320,-500.0,0.00024657,2]
[313651552,1707541833329,-500.0,0.00024657,2]
[313651553,1707541833338,-500.0,0.00024657,2]
[313651554,1707541833348,-500.0,0.00024657,2]
[313651555,1707541833357,-511.91969279,0.00024657,2]
[313651556,1707541833366,-703.46,0.00024657,2]
[313651557,1707541833376,-500.0,0.00024657,2]
[313651558,1707541833385,-550.0781256,0.00024657,2]
[313651559,1707541833395,-500.0,0.00024657,2]
[313651560,1707541833405,-500.0,0.00024657,2]
[313651561,1707541833414,-500.0,0.00024657,2]
[313651562,1707541833423,-500.0,0.00024657,2]
[313651563,1707541833432,-500.0,0.00024657,2]
[313651564,1707541833441,-500.0,0.00024657,2]
[313651565,1707541833450,-193.35864735,0.00024657,2]
[313651566,1707541833460,-500.0,0.00024657,2]
[313651567,1707541833469,-644.27,0.00024657,2]
[313651568,1707541833478,-553.55316338,0.00024657,2]
[313651569,1707541833487,-500.0,0.00024657,2]
[313651570,1707541833496,-500.0,0.00024657,2]
[313651571,1707541833506,-507.19562627,0.00024657,2]
[313651572,1707541833515,-500.0,0.00024657,2]
[313651573,1707541833524,-500.0,0.00024657,2]
[313651574,1707541833533,-500.0,0.00024657,2]
[313651575,1707541833542,-500.0,0.00024657,2]
[313651576,1707541833552,-564.32900605,0.00024657,2]
[313651577,1707541833561,-500.0,0.00024657,2]
[313651578,1707541833571,-500.0,0.00024657,2]
[313651579,1707541833580,-508.14483447,0.00024657,2]
[313651580,1707541833589,-502.74834527,0.00024657,2]
[313651581,1707541833599,-500.0,0.00024657,2]
[313651582,1707541833609,-381.52830043,0.00024657,2]
[313651583,1707541833618,-500.0,0.00024657,2]
[313651584,1707541833628,-500.0,0.00024657,2]
[313651585,1707541833637,-500.0,0.00024657,2]
[313651586,1707541833646,-642.29646918,0.00024657,2]
[313651587,1707541833658,-574.12536877,0.00024657,2]
[313651588,1707541833668,-500.0,0.00024657,2]
[313651589,1707541833677,-500.0,0.00024657,2]
[313651590,1707541833686,-500.0,0.00024657,2]
[313651591,1707541833696,-510.12508973,0.00024657,2]
[313651592,1707541833705,-500.0,0.00024657,2]
[313651593,1707541833714,-506.85639527,0.00024657,2]
[313651594,1707541833723,-500.0,0.00024657,2]
[313651595,1707541833735,-500.0,0.00024657,2]
[313651596,1707541833744,-500.0,0.00024657,2]
[313651597,1707541833753,-500.0,0.00024657,2]
[313651598,1707541833763,-513.81015588,0.00024657,2]
[313651599,1707541833772,-511.46081506,0.00024657,2]
[313651600,1707541833782,-545.13,0.00024657,2]
[313651601,1707541833791,-500.0,0.00024657,2]
[313651602,1707541833800,-508.22662076,0.00024657,2]
[313651603,1707541833809,-500.0,0.00024657,2]
[313651604,1707541833818,-500.0,0.00024657,2]
[313651605,1707541833828,-523.52985825,0.00024657,2]
[313651606,1707541833836,-500.0,0.00024657,2]
[313651607,1707541833846,-500.0,0.00024657,2]
[313651608,1707541833854,-500.0,0.00024657,2]
[313651609,1707541833863,-500.0,0.00024657,2]
[313651610,1707541833872,-500.0,0.00024657,2]
[313651611,1707541833881,-500.0,0.00024657,2]
[313651612,1707541833890,-500.0,0.00024657,2]
[313651613,1707541833899,-500.0,0.00024657,2]
[313651614,1707541833909,-500.0,0.00024657,2]
[313651615,1707541833918,-500.0,0.00024657,2]
[313651616,1707541833927,-500.0,0.00024657,2]
[313651617,1707541833936,-500.0,0.00024657,2]
[313651618,1707541833944,-514.14,0.00024657,2]
[313651619,1707541833953,-506.21905942,0.00024657,2]
[313651620,1707541833963,-500.0,0.00024657,2]
[313651621,1707541833972,-500.0,0.00024657,2]
[313651622,1707541833981,-505.63926045,0.00024657,2]
[313651623,1707541833990,-500.0,0.00024657,2]
[313651624,1707541833999,-500.0,0.00024657,2]
[313651625,1707541834008,-500.0,0.00024657,2]
[313651626,1707541834017,-500.0,0.00024657,2]
[313651627,1707541834026,-517.50657154,0.00024657,2]
[313651628,1707541834036,-500.0,0.00024657,2]
[313651629,1707541834045,-500.0,0.00024657,2]
[313651630,1707541834054,-1267.16,0.00024657,2]
[313651631,1707541834063,-500.0,0.00024657,2]
[313651632,1707541834072,-508.46364819,0.00024657,2]
[313651633,1707541834081,-500.0,0.00024657,2]
[313651634,1707541834090,-500.0,0.00024657,2]
[313651635,1707541834099,-500.0,0.00024657,2]
[313651636,1707541834109,-500.0,0.00024657,2]
[313651637,1707541834118,-500.0,0.00024657,2]
[313651638,1707541834127,-500.0,0.00024657,2]
[313651639,1707541834137,-1984.15,0.00024657,2]
[313651640,1707541834146,-506.22172016,0.00024657,2]
[313651641,1707541834156,-807.45,0.00024657,2]
[313651642,1707541834165,-500.0,0.00024657,2]
[313651643,1707541834174,-507.35574985,0.00024657,2]
[313651644,1707541834183,-500.0,0.00024657,2]
[313651645,1707541834192,-500.0,0.00024657,2]
[313651646,1707541834202,-500.0,0.00024657,2]
[313651647,1707541834210,-597.61549857,0.00024657,2]
[313651648,1707541834220,-500.0,0.00024657,2]
[313651649,1707541834229,-500.0,0.00024657,2]
[313651650,1707541834238,-500.0,0.00024657,2]
[313651651,1707541834248,-396.33282604,0.00024657,2]
[313651652,1707541834257,-150.0,0.00024657,2]
[313651653,1707541834267,-987.68,0.00024657,2]
[313651654,1707541834276,-500.0,0.00024657,2]
[313651655,1707541834285,-500.0,0.00024657,2]
[313651656,1707541834294,-500.0,0.00024657,2]
[313651657,1707541834303,-500.0,0.00024657,2]
[313651658,1707541834312,-500.0,0.00024657,2]
[313651659,1707541834321,-192.68,0.00024657,2]
[313651660,1707541834330,-500.0,0.00024657,2]
[313651661,1707541834340,-500.0,0.00024657,2]
[313651662,1707541834349,-500.0,0.00024657,2]
[313651663,1707541834358,-500.0,0.00024657,2]
[313651664,1707541834367,-511.55408203,0.00024657,2]
[313651665,1707541834377,-500.0,0.00024657,2]
[313651666,1707541834387,-529.73,0.00024657,2]
[313651667,1707541834396,-500.0,0.00024657,2]
[313651668,1707541834406,-500.0,0.00024657,2]
[313651669,1707541834416,-500.0,0.00024657,2]
[313651670,1707541834426,-500.0,0.00024657,2]
[313651671,1707541834436,-522.23380058,0.00024657,2]
[313651672,1707541834445,-500.0,0.00024657,2]
[313651673,1707541834455,-568.87,0.00024657,2]
[313651674,1707541834465,-509.65781456,0.00024657,2]
[313651675,1707541834475,-500.0,0.00024657,2]
[313651676,1707541834484,-500.0,0.00024657,2]
[313651677,1707541834494,-516.81079355,0.00024657,2]
[313651678,1707541834503,-500.0,0.00024657,2]
[313651679,1707541834513,-500.0,0.00024657,2]
[313651680,1707541834522,-500.0,0.00024657,2]
[313651681,1707541834532,-500.0,0.00024657,2]
[313651682,1707541834542,-451.11553576,0.00024657,2]
[313651683,1707541834551,-500.0,0.00024657,2]
[313651684,1707541834561,-648.85,0.00024657,2]
[313651685,1707541834570,-500.0,0.00024657,2]
[313651686,1707541834579,-500.0,0.00024657,2]
[313651687,1707541834589,-500.0,0.00024657,2]
[313651688,1707541834599,-500.0,0.00024657,2]
[313651689,1707541834609,-500.0,0.00024657,2]
[313651690,1707541834619,-500.0,0.00024657,2]
[313651691,1707541834629,-602.23,0.00024657,2]
[313651692,1707541834638,-550.84526034,0.00024657,2]
[313651693,1707541834649,-500.0,0.00024657,2]
[313651694,1707541834664,-500.0,0.00024657,2]
[313651695,1707541834673,-500.0,0.00024657,2]
[313651696,1707541834683,-500.0,0.00024657,2]
[313651697,1707541834693,-500.0,0.00024657,2]
[313651698,1707541834703,-500.0,0.00024657,2]
[313651699,1707541834712,-500.0,0.00024657,2]
[313651700,1707541834721,-500.0,0.00024657,2]
[313651701,1707541834731,-500.0,0.00024657,2]
[313651702,1707541834740,-295.50337478,0.00024657,2]
[313651703,1707541834751,-500.0,0.00024657,2]
[313651704,1707541834760,-500.0,0.00024657,2]
[313651705,1707541834769,-500.0,0.00024657,2]
[313651706,1707541834779,-500.0,0.00024657,2]
[313651707,1707541834788,-650.09,0.00024657,2]
[313651708,1707541834798,-560.23962796,0.00024657,2]
[313651709,1707541834807,-500.0,0.00024657,2]
[313651710,1707541834817,-511.27818349,0.00024657,2]
[313651711,1707541834827,-500.0,0.00024657,2]
[313651712,1707541834836,-500.0,0.00024657,2]
[313651713,1707541834846,-545.39,0.00024657,2]
[313651714,1707541834856,-500.0,0.00024657,2]
[313651715,1707541834865,-500.0,0.00024657,2]
[313651716,1707541834876,-510.11974822,0.00024657,2]
[313651717,1707541834886,-500.0,0.00024657,2]
[313651718,1707541834895,-500.0,0.00024657,2]
[313651719,1707541834906,-500.0,0.00024657,2]
[313651720,1707541834915,-500.0,0.00024657,2]
[313651721,1707541834925,-500.0,0.00024657,2]
[313651722,1707541834934,-500.0,0.00024657,2]
[313651723,1707541834944,-500.0,0.00024657,2]
[313651724,1707541834954,-500.0,0.00024657,2]
[313651725,1707541834963,-728.16,0.00024657,2]
[313651726,1707541834973,-500.0,0.00024657,2]
[313651727,1707541834982,-500.0,0.00024657,2]
[313651728,1707541834991,-630.31,0.00024657,2]
[313651729,1707541835000,-500.0,0.00024657,2]
[313651730,1707541835021,-500.0,0.00024657,2]
[313651731,1707541835032,-500.0,0.00024657,2]
[313651732,1707541835043,-500.0,0.00024657,2]
[313651733,1707541835053,-500.0,0.00024657,2]
[313651734,1707541835063,-500.0,0.00024657,2]
[313651735,1707541835073,-520.57,0.00024657,2]
[313651736,1707541835084,-183.37817431,0.00024657,2]
[313651737,1707541835094,-596.10099246,0.00024657,2]
[313651738,1707541835105,-638.60340356,0.00024657,2]
[313651739,1707541835114,-500.0,0.00024657,2]
[313651740,1707541835124,-500.0,0.00024657,2]
[313651741,1707541835134,-4417.49,0.00024657,2]
[313651742,1707541835143,-794.90561216,0.00024657,2]
[313651743,1707541835169,-1.71438784,0.00024657,2]
[313651744,1707541835179,-500.0,0.00024657,2]
[313651745,1707541835189,-194.26433581,0.00024657,2]
[313651746,1707541835260,-305.73566419,0.00024657,2]
[313651747,1707541835270,-197.42195,0.00024657,2]
[313651748,1707541835347,-302.57805,0.00024657,2]
[313651749,1707541835357,-500.0,0.00024657,2]
[313651750,1707541835368,-5121.15,0.00024657,2]
[313651751,1707541835377,-500.0,0.00024657,2]
[313651752,1707541835387,-500.0,0.00024657,2]
[313651753,1707541835397,-512.46648844,0.00024657,2]
[313651754,1707541835408,-996.88,0.00024657,2]
[313651755,1707541835417,-502.41479791,0.00024657,2]
[313651756,1707541835428,-500.0,0.00024657,2]
[313651757,1707541835441,-500.0,0.00024657,2]
[313651758,1707541835451,-500.0,0.00024657,2]
[313651759,1707541835462,-1482.66,0.00024657,2]
[313651760,1707541835472,-509.38325128,0.00024657,2]
[313651761,1707541835482,-500.0,0.00024657,2]
[313651762,1707541835493,-500.0,0.00024657,2]
[313651763,1707541835503,-500.0,0.00024657,2]
[313651764,1707541835513,-500.0,0.00024657,2]
[313651765,1707541835524,-1603.32,0.00024657,2]
[313651766,1707541835535,-500.0,0.00024657,2]
[313651767,1707541835545,-508.76993023,0.00024657,2]
[313651768,1707541835556,-10488.09,0.00024657,2]
[313651769,1707541835566,-500.0,0.00024657,2]
[313651770,1707541835576,-500.0,0.00024657,2]
[313651771,1707541835586,-3678.76,0.00024657,2]
[313651772,1707541835596,-529.48588887,0.00024657,2]
[313651773,1707541835606,-500.0,0.00024657,2]
[313651774,1707541835617,-500.0,0.00024657,2]
[313651775,1707541835627,-500.0,0.00024657,2]
[313651776,1707541835638,-4700.07,0.00024657,2]
[313651777,1707541835648,-500.0,0.00024657,2]
[313651778,1707541835662,-500.0,0.00024657,2]
[313651779,1707541835672,-500.0,0.00024657,2]
[313651780,1707541835682,-500.0,0.00024657,2]
[313651781,1707541835693,-528.72,0.00024657,2]
[313651782,1707541835703,-1287.62,0.00024657,2]
[313651783,1707541835714,-500.0,0.00024657,2]
[313651784,1707541835728,-500.0,0.00024657,2]
[313651785,1707541835740,-504.49820052,0.00024657,2]
[313651786,1707541835750,-503.96091184,0.00024657,2]
[313651787,1707541835761,-500.0,0.00024657,2]
[313651788,1707541835771,-500.0,0.00024657,2]
[313651789,1707541835781,-525.99,0.00024657,2]
[313651790,1707541835792,-2762.47245603,0.00024657,2]
[313651799,1707541838024,-375.2803825,0.00024657,2]
[313651800,1707541838037,-1183.26716147,0.00024657,2]
[313651801,1707541838047,-508.51148544,0.00024657,2]
[313651802,1707541838056,-503.34286857,0.00024657,2]
[313651803,1707541838066,-500.0,0.00024657,2]
[313651804,1707541838076,-166.04250127,0.00024657,2]
[313651805,1707541838089,-333.95749873,0.00024657,2]
[313651806,1707541838098,-500.0,0.00024657,2]
[313651807,1707541838108,-5586.92666816,0.00024657,2]
[313651808,1707541838136,-1471.341218,0.00024657,2]
[313651809,1707541838230,-1564.59211384,0.00024657,2]
[313651810,1707541838240,-514.48510988,0.00024657,2]
[313651811,1707541838250,-500.0,0.00024657,2]
[313651812,1707541838260,-1235.43,0.00024657,2]
[313651813,1707541838270,-30330.68,0.00024657,2]
[313651814,1707541838280,-500.0,0.00024657,2]
[313651815,1707541838289,-500.0,0.00024657,2]
[313651816,1707541838299,-5134.13,0.00024657,2]
[313651817,1707541838309,-500.0,0.00024657,2]
[313651818,1707541838318,-4111.15,0.00024657,2]
[313651819,1707541838328,-500.0,0.00024657,2]
[313651820,1707541838337,-500.0,0.00024657,2]
[313651821,1707541838347,-654.25,0.00024657,2]
[313651822,1707541838356,-500.0,0.00024657,2]
[313651823,1707541838365,-7598.26,0.00024657,2]
[313651824,1707541838375,-500.0,0.00024657,2]
[313651825,1707541838384,-500.0,0.00024657,2]
[313651826,1707541838394,-500.0,0.00024657,2]
[313651828,1707541838404,-503.37454782,0.00024657,2]
[313651830,1707541838413,-500.0,0.00024657,2]
[313651831,1707541838422,-2154.39,0.00024657,2]
[313651832,1707541838432,-1378.02,0.00024657,2]
[313651833,1707541838442,-525.42767528,0.00024657,2]
[313651834,1707541838451,-500.0,0.00024657,2]
[313651835,1707541838461,-500.0,0.00024657,2]
[313651836,1707541838471,-500.0,0.00024657,2]
[313651837,1707541838480,-4004.66,0.00024657,2]
[313651838,1707541838490,-1141.14,0.00024657,2]
[313651839,1707541838499,-500.0,0.00024657,2]
[313651840,1707541838509,-500.0,0.00024657,2]
[313651841,1707541838519,-500.0,0.00024657,2]
[313651842,1707541838528,-500.0,0.00024657,2]
[313651843,1707541838537,-563.45,0.00024657,2]
[313651844,1707541838546,-500.0,0.00024657,2]
[313651845,1707541838556,-500.0,0.00024657,2]
[313651846,1707541838565,-500.0,0.00024657,2]
[313651848,1707541838574,-509.81729847,0.00024657,2]
[313651849,1707541838583,-5320.84,0.00024657,2]
[313651850,1707541838593,-500.0,0.00024657,2]
[313651851,1707541838602,-500.0,0.00024657,2]
[313651852,1707541838612,-500.0,0.00024657,2]
[313651853,1707541838621,-500.0,0.00024657,2]
[313651854,1707541838630,-16992.36,0.00024657,2]
[313651855,1707541838639,-500.0,0.00024657,2]
[313651856,1707541838649,-500.0,0.00024657,2]
[313651857,1707541838662,-672.96,0.00024657,2]
[313651858,1707541838672,-2003.76,0.00024657,2]
[313651859,1707541838681,-500.0,0.00024657,2]
[313651860,1707541838691,-3726.24,0.00024657,2]
[313651861,1707541838702,-500.0,0.00024657,2]
[313651862,1707541838711,-500.0,0.00024657,2]
[313651863,1707541838721,-500.0,0.00024657,2]
[313651864,1707541838730,-500.0,0.00024657,2]
[313651865,1707541838742,-500.0,0.00024657,2]
[313651866,1707541838754,-3043.1,0.00024657,2]
[313651867,1707541838763,-500.0,0.00024657,2]
[313651868,1707541838774,-500.0,0.00024657,2]
[313651869,1707541838784,-500.0,0.00024657,2]
[313651870,1707541838793,-500.0,0.00024657,2]
[313651871,1707541838802,-500.0,0.00024657,2]
[313651872,1707541838812,-535.71524647,0.00024657,2]
[313651873,1707541838821,-1589.97,0.00024657,2]
[313651874,1707541838830,-500.0,0.00024657,2]
[313651875,1707541838840,-1214.58,0.00024657,2]
[313651876,1707541838849,-500.0,0.00024657,2]
[313651877,1707541838858,-1504.75498784,0.00024657,2]
[313651878,1707541838871,-380.21994964,0.00024657,2]
[313651879,1707541838883,-6258.16506252,0.00024657,2]
[313651880,1707541838892,-530.58980713,0.00024657,2]
[313651881,1707541838902,-500.0,0.00024657,2]
[313651882,1707541838911,-925.17,0.00024657,2]
[313651883,1707541838920,-5366.36619767,0.00024657,2]
[313651891,1707541840574,-640.24800772,0.00024656,2]
[313651892,1707541840583,-5216.09380233,0.00024657,2]
[313651893,1707541840592,-500.0,0.00024657,2]
[313651894,1707541840602,-752.09,0.00024657,2]
[313651895,1707541840611,-4054.82,0.00024657,2]
[313651896,1707541840621,-500.0,0.00024657,2]
[313651897,1707541840630,-500.0,0.00024657,2]
[313651898,1707541840640,-525.67735768,0.00024657,2]
[313651899,1707541840650,-500.0,0.00024657,2]
[313651900,1707541840662,-500.0,0.00024657,2]
[313651901,1707541840671,-433.37929589,0.00024657,2]
[313651902,1707541840681,-180.88622862,0.00024657,2]
[313651903,1707541841265,-816.30377138,0.00024657,2]
[313651904,1707541841275,-500.0,0.00024657,2]
[313651905,1707541841284,-500.0,0.00024657,2]
[313651906,1707541841294,-1086.84,0.00024657,2]
[313651907,1707541841304,-500.0,0.00024657,2]
[313651908,1707541841313,-989.49,0.00024657,2]
[313651909,1707541841322,-543.47432111,0.00024657,2]
[313651910,1707541841332,-2893.62,0.00024657,2]
[313651911,1707541841341,-463.16872046,0.00024657,2]
[313651912,1707541841353,-321.1046262,0.00024657,2]
[313651913,1707541841478,-469.30961175,0.00024657,2]
[313651928,1707541843036,-4547.11063519,0.00024657,2]
[313651929,1707541843289,-265.6000002,0.00024657,2]
[313651930,1707541845016,876.60554203,0.0002093,2]
[313651931,1707541845941,-500.0,0.00023,2]
[313651932,1707541845950,-243.64,0.0002458,2]
[313651933,1707541845960,-2776.3600005,0.00024656,2]
[313651934,1707541846120,-1323.10364238,0.00024656,2]
[313651935,1707541846132,-1112.78725367,0.00024656,2]
[313651936,1707541846141,-158.02009458,0.00024656,2]
[313651937,1707541846151,-301.19328588,0.00024656,2]
[313651938,1707541846161,-201.14503102,0.00024656,2]
[313651939,1707541846171,-2350.7864062,0.00024657,2]
[313651940,1707541846180,-500.0,0.00024657,2]
[313651941,1707541846189,-500.0,0.00024657,2]
[313651942,1707541846199,-500.0,0.00024657,2]
[313651943,1707541846208,-762.91,0.00024657,2]
[313651944,1707541846217,-6092.25,0.00024657,2]
[313651945,1707541846228,-500.0,0.00024657,2]
[313651946,1707541846238,-500.0,0.00024657,2]
[313651947,1707541846248,-500.0,0.00024657,2]
[313651948,1707541846257,-525.26072406,0.00024657,2]
[313651949,1707541846267,-5772.68,0.00024657,2]
[313651950,1707541846276,-512.28684484,0.00024657,2]
[313651951,1707541846286,-500.0,0.00024657,2]
[313651952,1707541846295,-533.82,0.00024657,2]
[313651953,1707541846304,-3262.21,0.00024657,2]
[313651954,1707541846313,-500.0,0.00024657,2]
[313651955,1707541846323,-500.0,0.00024657,2]
[313651956,1707541846332,-500.0,0.00024657,2]
[313651957,1707541846341,-2553.08,0.00024657,2]
[313651958,1707541846351,-500.0,0.00024657,2]
[313651959,1707541846360,-500.0,0.00024657,2]
[313651960,1707541846369,-3141.04,0.00024657,2]